[Event "Late-Titled-Tuesday-Blitz-April-30-2024"]
[Site "Chess.com"]
[Date "2024.04.30"]
[Round "6"]
[White "AsaHoffmann"]
[Black "NoSpaghettiForYou"]
[Result "0-1"]
[WhiteElo "2332"]
[BlackElo "2505"]
[TimeControl "180+1"]
[EndTime "15:06:59 PDT"]
[Termination "NoSpaghettiForYou won by resignation"]

1. d4 {[%clk 0:02:50.3]} 1... Nf6 {[%clk 0:03:00]} 2. Bg5 {[%clk 0:02:49.4]}
2... c6 {[%clk 0:02:56.4]} 3. Nc3 {[%clk 0:02:48.5]} 3... d5 {[%clk 0:02:56]} 4.
e3 {[%clk 0:02:47.9]} 4... Bf5 {[%clk 0:02:55.7]} 5. f3 {[%clk 0:02:47.4]} 5...
Nbd7 {[%clk 0:02:43]} 6. h4 {[%clk 0:02:43.1]} 6... h6 {[%clk 0:02:42]} 7. Bf4
{[%clk 0:02:41.4]} 7... e6 {[%clk 0:02:41.5]} 8. g4 {[%clk 0:02:37.6]} 8... Bh7
{[%clk 0:02:40.7]} 9. Bd3 {[%clk 0:02:37.4]} 9... a6 {[%clk 0:02:10]} 10. Nge2
{[%clk 0:02:35.7]} 10... c5 {[%clk 0:02:10.3]} 11. Bxh7 {[%clk 0:02:31]} 11...
Nxh7 {[%clk 0:02:10.4]} 12. Qd2 {[%clk 0:02:27.7]} 12... Qb6 {[%clk 0:02:06.4]}
13. O-O-O {[%clk 0:02:27.1]} 13... Qc6 {[%clk 0:01:45.3]} 14. e4 {[%clk
0:02:24.6]} 14... c4 {[%clk 0:01:09.9]} 15. exd5 {[%clk 0:02:18.4]} 15... exd5
{[%clk 0:01:10.8]} 16. g5 {[%clk 0:02:17.8]} 16... h5 {[%clk 0:01:09.1]} 17. Ng3
{[%clk 0:02:15.2]} 17... g6 {[%clk 0:00:50.8]} 18. Rde1+ {[%clk 0:02:14]} 18...
Kd8 {[%clk 0:00:51.2]} 19. Be5 {[%clk 0:02:06.9]} 19... Rg8 {[%clk 0:00:48.5]}
20. f4 {[%clk 0:02:05.1]} 20... b5 {[%clk 0:00:42.5]} 21. f5 {[%clk 0:02:04.3]}
21... b4 {[%clk 0:00:41.3]} 22. Nb1 {[%clk 0:02:01.9]} 22... Nxe5 {[%clk
0:00:29.2]} 23. dxe5 {[%clk 0:01:56.7]} 23... Kc7 {[%clk 0:00:29.5]} 24. e6
{[%clk 0:01:55.2]} 24... gxf5 {[%clk 0:00:28.2]} 25. exf7 {[%clk 0:01:51.7]}
25... Rg7 {[%clk 0:00:28.6]} 26. Nxf5 {[%clk 0:01:50.1]} 26... Rxf7 {[%clk
0:00:28]} 27. Nd4 {[%clk 0:01:48.6]} 27... Qd6 {[%clk 0:00:24.8]} 28. Ne6+
{[%clk 0:01:44.1]} 28... Kb7 {[%clk 0:00:24.6]} 29. g6 {[%clk 0:01:44.1]} 29...
Rf6 {[%clk 0:00:20.8]} 30. gxh7 {[%clk 0:01:27.2]} 30... Bh6 {[%clk 0:00:20.9]}
31. Ng5 {[%clk 0:01:24.6]} 31... Rh8 {[%clk 0:00:19]} 32. Qd4 {[%clk 0:01:21.3]}
32... Rxh7 {[%clk 0:00:16.6]} 33. Rhf1 {[%clk 0:01:18.3]} 33... Rhf7 {[%clk
0:00:15.3]} 34. Rxf6 {[%clk 0:01:17.2]} 34... Rxf6 {[%clk 0:00:16.2]} 35. Nd2
{[%clk 0:01:16.9]} 35... Rf4 {[%clk 0:00:13.8]} 36. Qe5 {[%clk 0:01:12.3]} 36...
Qxe5 {[%clk 0:00:12.8]} 37. Rxe5 {[%clk 0:01:11.8]} 37... Rxh4 {[%clk
0:00:13.2]} 38. Ngf3 {[%clk 0:01:10.7]} 38... Rh1+ {[%clk 0:00:12.9]} 39. Re1
{[%clk 0:01:10.1]} 39... Rxe1+ {[%clk 0:00:11.5]} 40. Nxe1 {[%clk 0:01:09.4]}
40... c3 {[%clk 0:00:12.1]} 41. bxc3 {[%clk 0:01:05.7]} 41... bxc3 {[%clk
0:00:13]} 42. Kd1 {[%clk 0:01:04.3]} 42... Bxd2 {[%clk 0:00:09.8]} 43. Nf3
{[%clk 0:01:04]} 43... Bf4 {[%clk 0:00:09.9]} 44. Ke2 {[%clk 0:01:01.8]} 44...
Bg3 {[%clk 0:00:05.6]} 45. Kd3 {[%clk 0:01:00.2]} 45... h4 {[%clk 0:00:06.1]}
46. Kxc3 {[%clk 0:00:58]} 46... h3 {[%clk 0:00:06.7]} 47. Kd4 {[%clk 0:00:57.4]}
47... h2 {[%clk 0:00:07]} 48. Nxh2 {[%clk 0:00:56.8]} 48... Bxh2 {[%clk
0:00:07.9]} 49. Kxd5 {[%clk 0:00:56.8]} 49... Kb6 {[%clk 0:00:08.5]} 50. c4
{[%clk 0:00:56.6]} 50... Bg1 {[%clk 0:00:09.1]} 51. a4 {[%clk 0:00:55.8]} 51...
a5 {[%clk 0:00:09.8]} 52. Ke4 {[%clk 0:00:54]} 52... Kc5 {[%clk 0:00:10.3]} 53.
Kd3 {[%clk 0:00:54.1]} 53... Bd4 {[%clk 0:00:10.8]} 54. Kc2 {[%clk 0:00:53.2]}
54... Kxc4 {[%clk 0:00:11.7]} 55. Kb1 {[%clk 0:00:53.1]} 55... Kb4 {[%clk
0:00:12.2]} 56. Ka2 {[%clk 0:00:53.1]} 56... Kxa4 {[%clk 0:00:12.9]} 57. Kb1
{[%clk 0:00:52.4]} 57... Kb3 {[%clk 0:00:13.8]} 58. Kc1 {[%clk 0:00:51.9]} 58...
a4 {[%clk 0:00:14.7]} 59. Kd2 {[%clk 0:00:52]} 59... a3 {[%clk 0:00:15.6]} 60.
Kd3 {[%clk 0:00:52.1]} 60... a2 {[%clk 0:00:16.1]} 61. Kxd4 {[%clk 0:00:51.5]}
61... a1=Q+ {[%clk 0:00:16.8]} 0-1

[Event "Late-Titled-Tuesday-Blitz-April-30-2024"]
[Site "Chess.com"]
[Date "2024.04.30"]
[Round "6"]
[White "ArrestingPieces"]
[Black "Walter_White_Poland"]
[Result "1-0"]
[WhiteElo "2523"]
[BlackElo "2364"]
[TimeControl "180+1"]
[EndTime "15:07:00 PDT"]
[Termination "ArrestingPieces won on time"]

1. e4 {[%clk 0:03:00.9]} 1... c5 {[%clk 0:02:57.8]} 2. c3 {[%clk 0:03:00.5]}
2... e6 {[%clk 0:02:57]} 3. d4 {[%clk 0:03:00.7]} 3... cxd4 {[%clk 0:02:56.8]}
4. cxd4 {[%clk 0:03:00.7]} 4... d5 {[%clk 0:02:56.9]} 5. Nc3 {[%clk 0:02:55.4]}
5... Nc6 {[%clk 0:02:55.7]} 6. Nf3 {[%clk 0:02:53.7]} 6... Bb4 {[%clk
0:02:53.1]} 7. Bd3 {[%clk 0:02:47.3]} 7... dxe4 {[%clk 0:02:50.8]} 8. Bxe4
{[%clk 0:02:47]} 8... Nf6 {[%clk 0:02:50.8]} 9. Bxc6+ {[%clk 0:02:45.7]} 9...
bxc6 {[%clk 0:02:50.8]} 10. Ne5 {[%clk 0:02:45.7]} 10... O-O {[%clk 0:02:06.9]}
11. O-O {[%clk 0:02:45]} 11... c5 {[%clk 0:01:31.9]} 12. Be3 {[%clk 0:02:01.6]}
12... Bxc3 {[%clk 0:01:07.4]} 13. bxc3 {[%clk 0:02:02]} 13... cxd4 {[%clk
0:01:07.5]} 14. Bxd4 {[%clk 0:01:51]} 14... Bb7 {[%clk 0:01:07.3]} 15. Qe2
{[%clk 0:01:49.9]} 15... Qd5 {[%clk 0:01:06]} 16. f3 {[%clk 0:01:48.2]} 16...
Rac8 {[%clk 0:01:04.9]} 17. Rfd1 {[%clk 0:01:37.6]} 17... Qa5 {[%clk 0:01:04.2]}
18. a4 {[%clk 0:01:36.4]} 18... Ba6 {[%clk 0:01:03.7]} 19. Qe3 {[%clk
0:01:34.7]} 19... Nd5 {[%clk 0:00:57.6]} 20. Qe1 {[%clk 0:00:57.6]} 20... f6
{[%clk 0:00:56.1]} 21. Nd7 {[%clk 0:00:56.3]} 21... Rfd8 {[%clk 0:00:53.8]} 22.
Qxe6+ {[%clk 0:00:54.9]} 22... Kh8 {[%clk 0:00:51.5]} 23. Nc5 {[%clk 0:00:50.2]}
23... Rxc5 {[%clk 0:00:47.2]} 24. Bxc5 {[%clk 0:00:46.8]} 24... Qxc5+ {[%clk
0:00:46.2]} 25. Kh1 {[%clk 0:00:47.3]} 25... Bc4 {[%clk 0:00:43.3]} 26. Rd4
{[%clk 0:00:43.8]} 26... Rg8 {[%clk 0:00:30.4]} 27. Qe4 {[%clk 0:00:41.9]} 27...
Bb3 {[%clk 0:00:14.9]} 28. Rc1 {[%clk 0:00:32]} 28... Nb6 {[%clk 0:00:07.4]} 29.
Qd3 {[%clk 0:00:22.1]} 29... Bxa4 {[%clk 0:00:06.5]} 30. Rh4 {[%clk 0:00:15.7]}
30... g6 {[%clk 0:00:06.7]} 31. Re1 {[%clk 0:00:12.6]} 31... Bb5 {[%clk
0:00:06.6]} 32. Qe4 {[%clk 0:00:09.2]} 32... Qf2 {[%clk 0:00:04.2]} 33. h3
{[%clk 0:00:08.4]} 33... Nd5 {[%clk 0:00:01.8]} 34. Rg1 {[%clk 0:00:05.9]} 34...
Bd3 {[%clk 0:00:01.9]} 35. Qd4 {[%clk 0:00:03.7]} 35... Qxd4 {[%clk 0:00:00.9]}
36. Rxd4 {[%clk 0:00:03.5]} 1-0

[Event "Late-Titled-Tuesday-Blitz-April-30-2024"]
[Site "Chess.com"]
[Date "2024.04.30"]
[Round "6"]
[White "ansko1999"]
[Black "PenguinPacks"]
[Result "0-1"]
[WhiteElo "2612"]
[BlackElo "2469"]
[TimeControl "180+1"]
[EndTime "15:07:03 PDT"]
[Termination "PenguinPacks won by checkmate"]

1. c4 {[%clk 0:03:00.9]} 1... Nf6 {[%clk 0:02:54.2]} 2. Nf3 {[%clk 0:03:00.8]}
2... g6 {[%clk 0:02:53.5]} 3. Nc3 {[%clk 0:02:59.9]} 3... Bg7 {[%clk 0:02:53.6]}
4. d4 {[%clk 0:03:00.3]} 4... O-O {[%clk 0:02:53.6]} 5. Bg5 {[%clk 0:03:00.9]}
5... d6 {[%clk 0:02:53.5]} 6. e3 {[%clk 0:02:58.1]} 6... Bf5 {[%clk 0:02:49.1]}
7. Bd3 {[%clk 0:02:41.5]} 7... Bxd3 {[%clk 0:02:49.3]} 8. Qxd3 {[%clk
0:02:42.4]} 8... Nbd7 {[%clk 0:02:49.6]} 9. O-O {[%clk 0:02:41.2]} 9... h6
{[%clk 0:02:43.6]} 10. Bh4 {[%clk 0:02:40.6]} 10... g5 {[%clk 0:02:42]} 11. Bg3
{[%clk 0:02:39.6]} 11... Re8 {[%clk 0:02:39.6]} 12. Rfd1 {[%clk 0:02:20.5]}
12... Nh5 {[%clk 0:02:39.3]} 13. Rab1 {[%clk 0:02:14.9]} 13... a5 {[%clk
0:02:35.8]} 14. a3 {[%clk 0:02:13.6]} 14... Nxg3 {[%clk 0:02:19]} 15. hxg3
{[%clk 0:02:13.7]} 15... e5 {[%clk 0:02:19.9]} 16. g4 {[%clk 0:01:56.6]} 16...
exd4 {[%clk 0:02:14]} 17. Nxd4 {[%clk 0:01:49.4]} 17... Ne5 {[%clk 0:02:10.6]}
18. Qe2 {[%clk 0:01:48.7]} 18... a4 {[%clk 0:02:04.5]} 19. Nf5 {[%clk
0:01:47.5]} 19... Qd7 {[%clk 0:01:55.1]} 20. c5 {[%clk 0:01:45.3]} 20... Ra6
{[%clk 0:01:44.6]} 21. cxd6 {[%clk 0:01:41.6]} 21... cxd6 {[%clk 0:01:45.5]} 22.
Ne4 {[%clk 0:01:38.8]} 22... d5 {[%clk 0:01:35.6]} 23. Nc5 {[%clk 0:01:34.1]}
23... Qc6 {[%clk 0:01:32]} 24. Nxa6 {[%clk 0:01:31.5]} 24... bxa6 {[%clk
0:01:32.9]} 25. Rbc1 {[%clk 0:01:28.2]} 25... Qb6 {[%clk 0:01:32.5]} 26. Rxd5
{[%clk 0:01:25]} 26... Qb3 {[%clk 0:01:22.3]} 27. Rd4 {[%clk 0:01:06.4]} 27...
Bf6 {[%clk 0:01:16.9]} 28. Nxh6+ {[%clk 0:01:04.1]} 28... Kh7 {[%clk 0:01:16.5]}
29. Nf5 {[%clk 0:01:04.4]} 29... Rb8 {[%clk 0:01:12.7]} 30. Rd6 {[%clk
0:01:01.1]} 30... Kg6 {[%clk 0:01:06.2]} 31. Qxa6 {[%clk 0:00:54.7]} 31... Nxg4
{[%clk 0:01:04.1]} 32. Ne7+ {[%clk 0:00:45.2]} 32... Kg7 {[%clk 0:00:59.1]} 33.
Nf5+ {[%clk 0:00:42.8]} 33... Kg6 {[%clk 0:00:59.3]} 34. Ne7+ {[%clk 0:00:34.2]}
34... Kg7 {[%clk 0:00:59.4]} 35. Nd5 {[%clk 0:00:24]} 35... Qxb2 {[%clk
0:00:54.8]} 36. Rf1 {[%clk 0:00:22.1]} 36... Be5 {[%clk 0:00:49.6]} 37. Rb6
{[%clk 0:00:17]} 37... Rh8 {[%clk 0:00:21.6]} 38. g3 {[%clk 0:00:10.8]} 38...
Qc2 {[%clk 0:00:14.4]} 39. Qb5 {[%clk 0:00:04.1]} 39... Qe4 {[%clk 0:00:11.9]}
40. f3 {[%clk 0:00:02.1]} 40... Qc2 {[%clk 0:00:10.1]} 41. Qb2 {[%clk
0:00:00.8]} 41... Bxb2 {[%clk 0:00:10.2]} 42. Rxb2 {[%clk 0:00:00.9]} 42... Qxb2
{[%clk 0:00:10.4]} 43. fxg4 {[%clk 0:00:01]} 43... Qh2# {[%clk 0:00:10.4]} 0-1

[Event "Late-Titled-Tuesday-Blitz-April-30-2024"]
[Site "Chess.com"]
[Date "2024.04.30"]
[Round "6"]
[White "GaiozNigalidze"]
[Black "baki83"]
[Result "1-0"]
[WhiteElo "2754"]
[BlackElo "2896"]
[TimeControl "180+1"]
[EndTime "15:07:04 PDT"]
[Termination "GaiozNigalidze won on time"]

1. e4 {[%clk 0:03:00.9]} 1... c5 {[%clk 0:03:00]} 2. Nf3 {[%clk 0:02:59.6]} 2...
Nc6 {[%clk 0:02:59.9]} 3. Bb5 {[%clk 0:02:56.6]} 3... g6 {[%clk 0:02:59.5]} 4.
O-O {[%clk 0:02:54.4]} 4... Bg7 {[%clk 0:02:59.7]} 5. Bxc6 {[%clk 0:02:52]} 5...
dxc6 {[%clk 0:02:58.5]} 6. d3 {[%clk 0:02:51.7]} 6... e5 {[%clk 0:02:58.7]} 7.
a3 {[%clk 0:02:48.2]} 7... Qe7 {[%clk 0:02:47.7]} 8. Nbd2 {[%clk 0:02:37.6]}
8... Nf6 {[%clk 0:02:46.6]} 9. h3 {[%clk 0:02:34.6]} 9... O-O {[%clk 0:02:44.8]}
10. b4 {[%clk 0:02:33.1]} 10... Nd7 {[%clk 0:02:41.6]} 11. Bb2 {[%clk
0:02:28.9]} 11... b5 {[%clk 0:02:26.8]} 12. Nb3 {[%clk 0:02:23.5]} 12... Rd8
{[%clk 0:02:04.9]} 13. Qe1 {[%clk 0:02:22.2]} 13... cxb4 {[%clk 0:01:57.2]} 14.
axb4 {[%clk 0:02:20.8]} 14... Nf8 {[%clk 0:01:57.3]} 15. Qc3 {[%clk 0:01:46.9]}
15... Be6 {[%clk 0:01:33.8]} 16. Na5 {[%clk 0:01:23.2]} 16... Rdc8 {[%clk
0:01:12.4]} 17. Nxe5 {[%clk 0:01:19.9]} 17... f6 {[%clk 0:00:36.7]} 18. Nexc6
{[%clk 0:01:12.9]} 18... Qd7 {[%clk 0:00:37]} 19. d4 {[%clk 0:01:09.9]} 19...
Bc4 {[%clk 0:00:35.9]} 20. d5 {[%clk 0:00:56.1]} 20... Bxf1 {[%clk 0:00:36]} 21.
Rxf1 {[%clk 0:00:54.3]} 21... Re8 {[%clk 0:00:34.2]} 22. f3 {[%clk 0:00:51.1]}
22... Rac8 {[%clk 0:00:34.3]} 23. Nb3 {[%clk 0:00:49.9]} 23... Qf7 {[%clk
0:00:30]} 24. Nc5 {[%clk 0:00:48]} 24... Rc7 {[%clk 0:00:23.8]} 25. Qd3 {[%clk
0:00:47.1]} 25... Rec8 {[%clk 0:00:21.9]} 26. f4 {[%clk 0:00:45.1]} 26... Qe8
{[%clk 0:00:09]} 27. Qxb5 {[%clk 0:00:36.6]} 27... Kh8 {[%clk 0:00:09.1]} 28.
Qd3 {[%clk 0:00:35.2]} 28... a5 {[%clk 0:00:08.4]} 29. b5 {[%clk 0:00:34.7]}
29... Rf7 {[%clk 0:00:07.7]} 30. b6 {[%clk 0:00:31.1]} 30... Rb8 {[%clk
0:00:03.1]} 31. Nxb8 {[%clk 0:00:28]} 31... Qxb8 {[%clk 0:00:04]} 32. Qb5 {[%clk
0:00:25.7]} 32... a4 {[%clk 0:00:04.3]} 33. Nxa4 {[%clk 0:00:24.5]} 33... Re7
{[%clk 0:00:04.8]} 34. Qc4 {[%clk 0:00:19.9]} 34... Nd7 {[%clk 0:00:04.8]} 35.
Ba3 {[%clk 0:00:17.3]} 35... Re8 {[%clk 0:00:04.9]} 36. Rb1 {[%clk 0:00:17.2]}
36... Qb7 {[%clk 0:00:04.4]} 37. Qc6 {[%clk 0:00:16.5]} 37... Qa8 {[%clk
0:00:03.6]} 38. Qxa8 {[%clk 0:00:15.8]} 38... Rxa8 {[%clk 0:00:02.1]} 39. b7
{[%clk 0:00:12.5]} 39... Rb8 {[%clk 0:00:02.5]} 40. Bd6 {[%clk 0:00:11.7]} 1-0

[Event "Late-Titled-Tuesday-Blitz-April-30-2024"]
[Site "Chess.com"]
[Date "2024.04.30"]
[Round "6"]
[White "AungTZ"]
[Black "Attacker_2006"]
[Result "0-1"]
[WhiteElo "2177"]
[BlackElo "2517"]
[TimeControl "180+1"]
[EndTime "15:07:04 PDT"]
[Termination "Attacker_2006 won on time"]

1. e4 {[%clk 0:02:56.5]} 1... g6 {[%clk 0:03:00.9]} 2. d4 {[%clk 0:02:56.3]}
2... Bg7 {[%clk 0:03:01.8]} 3. Nf3 {[%clk 0:02:55.8]} 3... d6 {[%clk 0:03:02.4]}
4. h3 {[%clk 0:02:55.2]} 4... a6 {[%clk 0:03:00.9]} 5. Nc3 {[%clk 0:02:54.5]}
5... b5 {[%clk 0:03:01.1]} 6. a3 {[%clk 0:02:54]} 6... Bb7 {[%clk 0:03:01.6]} 7.
Bd3 {[%clk 0:02:54]} 7... Nd7 {[%clk 0:03:02.2]} 8. O-O {[%clk 0:02:53.5]} 8...
c5 {[%clk 0:03:02.9]} 9. d5 {[%clk 0:02:44.4]} 9... Ngf6 {[%clk 0:03:01.9]} 10.
Re1 {[%clk 0:02:43]} 10... O-O {[%clk 0:03:02.4]} 11. Bf4 {[%clk 0:02:41.6]}
11... Ne8 {[%clk 0:03:00.6]} 12. Bf1 {[%clk 0:02:28.4]} 12... Ne5 {[%clk
0:02:55.5]} 13. Nxe5 {[%clk 0:02:24.2]} 13... dxe5 {[%clk 0:02:56.4]} 14. Be3
{[%clk 0:02:23.7]} 14... Rc8 {[%clk 0:02:55.4]} 15. Qd2 {[%clk 0:02:19.6]} 15...
Nd6 {[%clk 0:02:54.2]} 16. a4 {[%clk 0:02:05.6]} 16... b4 {[%clk 0:02:51.2]} 17.
Nd1 {[%clk 0:02:03]} 17... Nxe4 {[%clk 0:02:50.6]} 18. Qc1 {[%clk 0:01:55.3]}
18... Qxd5 {[%clk 0:02:48.9]} 19. b3 {[%clk 0:01:47.2]} 19... Nd6 {[%clk
0:02:40.4]} 20. Nb2 {[%clk 0:01:45.8]} 20... Kh8 {[%clk 0:02:34.4]} 21. Rd1
{[%clk 0:01:43.5]} 21... Qe6 {[%clk 0:02:34.2]} 22. Nc4 {[%clk 0:01:39.4]} 22...
f5 {[%clk 0:02:34.6]} 23. f3 {[%clk 0:01:32.7]} 23... f4 {[%clk 0:02:30.6]} 24.
Bf2 {[%clk 0:01:32.4]} 24... e4 {[%clk 0:02:30.9]} 25. fxe4 {[%clk 0:01:32.4]}
25... Nxe4 {[%clk 0:02:28.1]} 26. Re1 {[%clk 0:01:27.5]} 26... f3 {[%clk
0:02:21]} 27. g4 {[%clk 0:01:08.1]} 27... Qf6 {[%clk 0:02:07.6]} 28. Qe3 {[%clk
0:00:55.3]} 28... Nxf2 {[%clk 0:01:54.9]} 29. Qxf2 {[%clk 0:00:55.2]} 29... Qd4
{[%clk 0:01:54.7]} 30. Rad1 {[%clk 0:00:49.2]} 30... Qxf2+ {[%clk 0:01:52.1]}
31. Kxf2 {[%clk 0:00:49.3]} 31... Bd4+ {[%clk 0:01:52.6]} 32. Kg3 {[%clk
0:00:48.9]} 32... f2 {[%clk 0:01:50.9]} 33. Rxe7 {[%clk 0:00:48.7]} 33... Rf3+
{[%clk 0:01:47.2]} 34. Kh2 {[%clk 0:00:36.7]} 34... Rb8 {[%clk 0:01:34.3]} 35.
Bg2 {[%clk 0:00:22.2]} 35... Rff8 {[%clk 0:01:07]} 36. Rf1 {[%clk 0:00:17.2]}
36... Bf6 {[%clk 0:01:04.8]} 37. Rxb7 {[%clk 0:00:15.9]} 37... Rbe8 {[%clk
0:00:39.6]} 38. Kh1 {[%clk 0:00:06.3]} 38... Bd4 {[%clk 0:00:39.5]} 39. Nd6
{[%clk 0:00:04.2]} 39... Re2 {[%clk 0:00:37.8]} 40. Nf7+ {[%clk 0:00:03.7]}
40... Kg7 {[%clk 0:00:37.2]} 41. Ng5+ {[%clk 0:00:04]} 41... Kh6 {[%clk
0:00:36.3]} 42. Ne6 {[%clk 0:00:03.4]} 42... Rxe6 {[%clk 0:00:35.3]} 43. Bd5
{[%clk 0:00:01.8]} 43... Re1 {[%clk 0:00:34.4]} 44. Kg2 {[%clk 0:00:01.9]} 44...
Kg5 {[%clk 0:00:34.9]} 0-1

[Event "Late-Titled-Tuesday-Blitz-April-30-2024"]
[Site "Chess.com"]
[Date "2024.04.30"]
[Round "6"]
[White "DuleMudule"]
[Black "h4parah5"]
[Result "0-1"]
[WhiteElo "2780"]
[BlackElo "3023"]
[TimeControl "180+1"]
[EndTime "15:07:05 PDT"]
[Termination "h4parah5 won by resignation"]

1. d4 {[%clk 0:02:49.9]} 1... Nf6 {[%clk 0:02:51.7]} 2. Bg5 {[%clk 0:02:48.7]}
2... e6 {[%clk 0:02:51.1]} 3. e3 {[%clk 0:02:48.4]} 3... h6 {[%clk 0:02:51.6]}
4. Bh4 {[%clk 0:02:47.6]} 4... c5 {[%clk 0:02:52.2]} 5. c3 {[%clk 0:02:47]} 5...
d5 {[%clk 0:02:51.2]} 6. Nd2 {[%clk 0:02:46.4]} 6... Nc6 {[%clk 0:02:51.2]} 7.
f4 {[%clk 0:02:46.6]} 7... g5 {[%clk 0:02:43.5]} 8. fxg5 {[%clk 0:02:31.7]} 8...
Nh7 {[%clk 0:02:43.5]} 9. Bd3 {[%clk 0:02:29.1]} 9... hxg5 {[%clk 0:02:43.2]}
10. Bg3 {[%clk 0:02:28.9]} 10... Nf6 {[%clk 0:02:42.5]} 11. Ngf3 {[%clk
0:02:28.2]} 11... Nh5 {[%clk 0:02:42.2]} 12. Bf2 {[%clk 0:02:16.4]} 12... g4
{[%clk 0:02:40.1]} 13. Ne5 {[%clk 0:02:16.6]} 13... Nxe5 {[%clk 0:02:35.1]} 14.
dxe5 {[%clk 0:02:17.5]} 14... Qg5 {[%clk 0:02:32.2]} 15. Bb5+ {[%clk 0:02:13.6]}
15... Kd8 {[%clk 0:02:29.6]} 16. Be2 {[%clk 0:02:11.5]} 16... Qxe5 {[%clk
0:02:19.3]} 17. Bxg4 {[%clk 0:02:10.5]} 17... Nf6 {[%clk 0:02:19.2]} 18. Be2
{[%clk 0:02:05.8]} 18... Rxh2 {[%clk 0:02:17.7]} 19. Rg1 {[%clk 0:02:03.4]}
19... Rh8 {[%clk 0:02:13.4]} 20. Nf3 {[%clk 0:02:03.5]} 20... Qe4 {[%clk
0:02:07.7]} 21. Bd3 {[%clk 0:01:58.5]} 21... Qg4 {[%clk 0:02:07.4]} 22. Qc2
{[%clk 0:01:55.9]} 22... Ne4 {[%clk 0:02:04.3]} 23. O-O-O {[%clk 0:01:54.2]}
23... Nxf2 {[%clk 0:02:04.4]} 24. Qxf2 {[%clk 0:01:54.2]} 24... Bd6 {[%clk
0:02:04]} 25. e4 {[%clk 0:01:43.7]} 25... dxe4 {[%clk 0:02:02.9]} 26. Bxe4
{[%clk 0:01:28.5]} 26... Qf4+ {[%clk 0:02:02.7]} 27. Rd2 {[%clk 0:01:26.5]}
27... Ke7 {[%clk 0:02:02.5]} 28. Qe2 {[%clk 0:01:20.4]} 28... Rd8 {[%clk
0:01:59.7]} 29. Kb1 {[%clk 0:01:16.6]} 29... Bd7 {[%clk 0:01:58.3]} 30. Rgd1
{[%clk 0:01:10.8]} 30... Ba4 {[%clk 0:01:54.7]} 31. b3 {[%clk 0:01:08.6]} 31...
Be8 {[%clk 0:01:54.3]} 32. Bxb7 {[%clk 0:01:07.3]} 32... Rab8 {[%clk 0:01:54.1]}
33. Qa6 {[%clk 0:01:03.8]} 33... Bc7 {[%clk 0:01:46.4]} 34. Rxd8 {[%clk
0:01:01.1]} 34... Rxd8 {[%clk 0:01:46.5]} 35. Rxd8 {[%clk 0:01:00.6]} 35... Kxd8
{[%clk 0:01:47.4]} 36. Qxa7 {[%clk 0:00:58.9]} 36... Qe3 {[%clk 0:01:46.2]} 37.
Qa8+ {[%clk 0:00:56.1]} 37... Ke7 {[%clk 0:01:45.9]} 38. Bc6 {[%clk 0:00:55.7]}
38... Bxc6 {[%clk 0:01:34.7]} 39. Qxc6 {[%clk 0:00:56.6]} 39... Bd6 {[%clk
0:01:35.2]} 40. Qb7+ {[%clk 0:00:42.6]} 40... Kf6 {[%clk 0:01:34.7]} 41. Qd7
{[%clk 0:00:40.5]} 41... Qd3+ {[%clk 0:01:34.5]} 42. Kb2 {[%clk 0:00:40.3]}
42... c4 {[%clk 0:01:30.4]} 43. Qd8+ {[%clk 0:00:39.4]} 43... Kg7 {[%clk
0:01:28.9]} 44. Qg5+ {[%clk 0:00:38.9]} 44... Kf8 {[%clk 0:01:28.6]} 45. Qd2
{[%clk 0:00:39.4]} 45... Qxd2+ {[%clk 0:01:19.2]} 46. Nxd2 {[%clk 0:00:40.3]}
46... cxb3 {[%clk 0:01:19.7]} 47. axb3 {[%clk 0:00:39.8]} 47... f5 {[%clk
0:01:20.3]} 48. b4 {[%clk 0:00:37.9]} 48... Ke7 {[%clk 0:01:19.7]} 49. Kb3
{[%clk 0:00:37.8]} 49... e5 {[%clk 0:01:20]} 50. c4 {[%clk 0:00:38.2]} 50... e4
{[%clk 0:01:19.4]} 51. c5 {[%clk 0:00:38.7]} 51... Bg3 {[%clk 0:01:18.7]} 52.
Nc4 {[%clk 0:00:34.9]} 52... Ke6 {[%clk 0:01:17.5]} 53. Kc3 {[%clk 0:00:33.4]}
53... Be1+ {[%clk 0:01:15.5]} 54. Kb3 {[%clk 0:00:33.6]} 54... f4 {[%clk
0:01:15.1]} 55. b5 {[%clk 0:00:31.2]} 55... Bf2 {[%clk 0:01:11.4]} 56. c6 {[%clk
0:00:29.7]} 56... e3 {[%clk 0:01:10.8]} 57. Nb6 {[%clk 0:00:18.3]} 57... Kd6
{[%clk 0:01:07.6]} 58. Nd5 {[%clk 0:00:13.6]} 58... e2 {[%clk 0:01:02.4]} 59. c7
{[%clk 0:00:10.4]} 59... Kd7 {[%clk 0:01:02.4]} 60. b6 {[%clk 0:00:08]} 60...
Bxb6 {[%clk 0:01:01.8]} 61. c8=Q+ {[%clk 0:00:05.4]} 61... Kxc8 {[%clk
0:01:00.4]} 62. Nxf4 {[%clk 0:00:05.8]} 62... e1=Q {[%clk 0:01:00.2]} 63. Ne2
{[%clk 0:00:06.7]} 63... Qxe2 {[%clk 0:01:00.2]} 0-1